{"text_format":"3","workbook":"xlsx","n_sheets":1,"sheets":["Orçamento Pessoal Mensal"],"read":"whole","date_system":"1900"}

{"sheet":"Orçamento Pessoal Mensal","index":0,"n_rows":62,"n_cols":10,"rows_kept":62,"merged":[[0,1,0,9],[2,1,4,1],[2,2,2,3],[2,7,2,8],[3,2,3,3],[3,7,3,8],[4,2,4,3],[4,6,4,8],[5,1,7,1],[5,2,5,3],[5,7,5,8],[6,2,6,3],[6,7,6,8],[7,2,7,3],[7,6,7,8],[20,6,20,9],[21,1,21,4],[29,6,29,9],[31,1,31,4],[36,6,36,9],[38,1,38,4],[42,6,42,9],[44,1,44,4],[48,6,48,9],[52,1,52,4],[55,6,55,9]]}
[null,"Orçamento Pessoal Mensal"]
[]
[null,"RENDIMENTO MENSAL ESTIMADO","Rendimento 1",null,{"v":2500,"d":"2,500 €"},null,"DESPESAS ESTIMADAS TOTAIS ","(Rendimento estimado menos despesas)",null,{"$f":"SUM(C21,C31,C38,C44,C52,C62,H20,H29,H36,H42,H48,H55)","v":{"v":2060,"d":"2,060 €"}}]
[null,null,"Rendimento extra",null,{"v":500,"d":"500 €"},null,"DESPESAS REAIS TOTAIS ","(Rendimento real menos despesas)",null,{"$f":"SUM(D21,D31,D38,D44,D52,D62,I20,I29,I36,I42,I48,I55)","v":{"v":2040,"d":"2,040 €"}}]
[null,null,"Rendimento mensal total",null,{"$f":"SUM(E3:E4)","v":{"v":3000,"d":"3,000 €"}},null,"Diferença Entre as Despesas Totais",null,null,{"$f":"SUM(E21,E31,E38,E44,E52,E62,J20,J29,J36,J42,J48,J55)","v":{"v":20,"d":"20 €"}}]
[null,"RENDIMENTO MENSAL REAL","Rendimento 1",null,{"v":2500,"d":"2,500 €"},null,"SALDO ESTIMADO","(Rendimento estimado menos despesas)",null,{"$f":"E5-J3","v":{"v":940,"d":"940 €"}}]
[null,null,"Rendimento extra",null,{"v":500,"d":"500 €"},null,"SALDO REAL","(Rendimento real menos despesas)",null,{"$f":"E8-J4","v":{"v":960,"d":"960 €"}}]
[null,null,"Rendimento mensal total",null,{"$f":"SUM(E6:E7)","v":{"v":3000,"d":"3,000 €"}},null,"DIFERENÇA ENTRE SALDOS (saldo real menos estimado)",null,null,{"$f":"J7-J6","v":{"v":20,"d":"20 €"}}]
[]
[null,"HABITAÇÃO","Custo Estimado","Custo Real","Diferença",null,"LAZER","Custo Estimado","Custo Real","Diferença"]
[null,"Hipoteca ou renda",{"v":1500,"d":"1,500 €"},{"v":1400,"d":"1,400 €"},{"$f":"Habitação[[#This Row],[Custo Estimado]]-Habitação[[#This Row],[Custo Real]]","v":{"v":100,"d":"100 €"}},null,"Vídeo/DVD",{"v":0,"d":"0 €"},{"v":50,"d":"50 €"},{"$f":"Lazer[[#This Row],[Custo Estimado]]-Lazer[[#This Row],[Custo Real]]","v":{"v":-50,"d":"-50 €"}}]
[null,"Telefone",{"v":60,"d":"60 €"},{"v":100,"d":"100 €"},{"$f":"Habitação[[#This Row],[Custo Estimado]]-Habitação[[#This Row],[Custo Real]]","v":{"v":-40,"d":"-40 €"}},null,"CDs",null,null,{"$f":"Lazer[[#This Row],[Custo Estimado]]-Lazer[[#This Row],[Custo Real]]","v":{"v":0,"d":"0 €"}}]
[null,"Eletricidade",{"v":50,"d":"50 €"},{"v":60,"d":"60 €"},{"$f":"Habitação[[#This Row],[Custo Estimado]]-Habitação[[#This Row],[Custo Real]]","v":{"v":-10,"d":"-10 €"}},null,"Filmes",null,null,{"$f":"Lazer[[#This Row],[Custo Estimado]]-Lazer[[#This Row],[Custo Real]]","v":{"v":0,"d":"0 €"}}]
[null,"Combustível",{"v":200,"d":"200 €"},{"v":180,"d":"180 €"},{"$f":"Habitação[[#This Row],[Custo Estimado]]-Habitação[[#This Row],[Custo Real]]","v":{"v":20,"d":"20 €"}},null,"Concertos",null,null,{"$f":"Lazer[[#This Row],[Custo Estimado]]-Lazer[[#This Row],[Custo Real]]","v":{"v":0,"d":"0 €"}}]
[null,"Água e tratamentos",null,null,{"$f":"Habitação[[#This Row],[Custo Estimado]]-Habitação[[#This Row],[Custo Real]]","v":{"v":0,"d":"0 €"}},null,"Eventos desportivos",null,null,{"$f":"Lazer[[#This Row],[Custo Estimado]]-Lazer[[#This Row],[Custo Real]]","v":{"v":0,"d":"0 €"}}]
[null,"TV por cabo",null,null,{"$f":"Habitação[[#This Row],[Custo Estimado]]-Habitação[[#This Row],[Custo Real]]","v":{"v":0,"d":"0 €"}},null,"Teatro",null,null,{"$f":"Lazer[[#This Row],[Custo Estimado]]-Lazer[[#This Row],[Custo Real]]","v":{"v":0,"d":"0 €"}}]
[null,"Recolha de resíduos",null,null,{"$f":"Habitação[[#This Row],[Custo Estimado]]-Habitação[[#This Row],[Custo Real]]","v":{"v":0,"d":"0 €"}},null,"Outros",null,null,{"$f":"Lazer[[#This Row],[Custo Estimado]]-Lazer[[#This Row],[Custo Real]]","v":{"v":0,"d":"0 €"}}]
[null,"Manutenção ou reparações",null,null,{"$f":"Habitação[[#This Row],[Custo Estimado]]-Habitação[[#This Row],[Custo Real]]","v":{"v":0,"d":"0 €"}},null,"Outros",null,null,{"$f":"Lazer[[#This Row],[Custo Estimado]]-Lazer[[#This Row],[Custo Real]]","v":{"v":0,"d":"0 €"}}]
[null,"Materiais",null,null,{"$f":"Habitação[[#This Row],[Custo Estimado]]-Habitação[[#This Row],[Custo Real]]","v":{"v":0,"d":"0 €"}},null,"Outros",null,null,{"$f":"Lazer[[#This Row],[Custo Estimado]]-Lazer[[#This Row],[Custo Real]]","v":{"v":0,"d":"0 €"}}]
[null,"Outros",null,null,{"$f":"Habitação[[#This Row],[Custo Estimado]]-Habitação[[#This Row],[Custo Real]]","v":{"v":0,"d":"0 €"}},null,"Total",{"$f":"SUBTOTAL(109,Lazer[Custo Estimado])","v":{"v":0,"d":"0 €"}},{"$f":"SUBTOTAL(109,Lazer[Custo Real])","v":{"v":50,"d":"50 €"}},{"$f":"SUBTOTAL(109,Lazer[Diferença])","v":{"v":-50,"d":"-50 €"}}]
[null,"Total",{"$f":"SUBTOTAL(109,Habitação[Custo Estimado])","v":{"v":1810,"d":"1,810 €"}},{"$f":"SUBTOTAL(109,Habitação[Custo Real])","v":{"v":1740,"d":"1,740 €"}},{"$f":"SUBTOTAL(109,Habitação[Diferença])","v":{"v":70,"d":"70 €"}}]
[{"$nulls":6},"EMPRÉSTIMOS","Custo Estimado","Custo Real","Diferença"]
[null,"TRANSPORTES","Custo Estimado","Custo Real","Diferença",null,"Pessoais",null,null,{"$f":"Empréstimos[[#This Row],[Custo Estimado]]-Empréstimos[[#This Row],[Custo Real]]","v":{"v":0,"d":"0 €"}}]
[null,"Pagamento de veículo",{"v":250,"d":"250 €"},{"v":250,"d":"250 €"},{"$f":"Transportes[[#This Row],[Custo Estimado]]-Transportes[[#This Row],[Custo Real]]","v":{"v":0,"d":"0 €"}},null,"Estudante",null,null,{"$f":"Empréstimos[[#This Row],[Custo Estimado]]-Empréstimos[[#This Row],[Custo Real]]","v":{"v":0,"d":"0 €"}}]
[null,"Despesas de autocarro/táxi",null,null,{"$f":"Transportes[[#This Row],[Custo Estimado]]-Transportes[[#This Row],[Custo Real]]","v":{"v":0,"d":"0 €"}},null,"Cartão de crédito",null,null,{"$f":"Empréstimos[[#This Row],[Custo Estimado]]-Empréstimos[[#This Row],[Custo Real]]","v":{"v":0,"d":"0 €"}}]
[null,"Seguros",null,null,{"$f":"Transportes[[#This Row],[Custo Estimado]]-Transportes[[#This Row],[Custo Real]]","v":{"v":0,"d":"0 €"}},null,"Cartão de crédito",null,null,{"$f":"Empréstimos[[#This Row],[Custo Estimado]]-Empréstimos[[#This Row],[Custo Real]]","v":{"v":0,"d":"0 €"}}]
[null,"Licença",null,null,{"$f":"Transportes[[#This Row],[Custo Estimado]]-Transportes[[#This Row],[Custo Real]]","v":{"v":0,"d":"0 €"}},null,"Cartão de crédito",null,null,{"$f":"Empréstimos[[#This Row],[Custo Estimado]]-Empréstimos[[#This Row],[Custo Real]]","v":{"v":0,"d":"0 €"}}]
[null,"Combustível",null,null,{"$f":"Transportes[[#This Row],[Custo Estimado]]-Transportes[[#This Row],[Custo Real]]","v":{"v":0,"d":"0 €"}},null,"Outros",null,null,{"$f":"Empréstimos[[#This Row],[Custo Estimado]]-Empréstimos[[#This Row],[Custo Real]]","v":{"v":0,"d":"0 €"}}]
[null,"Manutenção",null,null,{"$f":"Transportes[[#This Row],[Custo Estimado]]-Transportes[[#This Row],[Custo Real]]","v":{"v":0,"d":"0 €"}},null,"Total",{"$f":"SUBTOTAL(109,Empréstimos[Custo Estimado])","v":{"v":0,"d":"0 €"}},{"$f":"SUBTOTAL(109,Empréstimos[Custo Real])","v":{"v":0,"d":"0 €"}},{"$f":"SUBTOTAL(109,Empréstimos[Diferença])","v":{"v":0,"d":"0 €"}}]
[null,"Outros",null,null,{"$f":"Transportes[[#This Row],[Custo Estimado]]-Transportes[[#This Row],[Custo Real]]","v":{"v":0,"d":"0 €"}}]
[null,"Total",{"$f":"SUBTOTAL(109,Transportes[Custo Estimado])","v":{"v":250,"d":"250 €"}},{"$f":"SUBTOTAL(109,Transportes[Custo Real])","v":{"v":250,"d":"250 €"}},{"$f":"SUBTOTAL(109,Transportes[Diferença])","v":{"v":0,"d":"0 €"}},null,"IMPOSTOS","Custo Estimado","Custo Real","Diferença"]
[{"$nulls":6},"Federais",null,null,{"$f":"Impostos[[#This Row],[Custo Estimado]]-Impostos[[#This Row],[Custo Real]]","v":{"v":0,"d":"0 €"}}]
[null,"SEGUROS","Custo Estimado","Custo Real","Diferença",null,"Distritais",null,null,{"$f":"Impostos[[#This Row],[Custo Estimado]]-Impostos[[#This Row],[Custo Real]]","v":{"v":0,"d":"0 €"}}]
[null,"Casa",null,null,{"$f":"Seguros[[#This Row],[Custo Estimado]]-Seguros[[#This Row],[Custo Real]]","v":{"v":0,"d":"0 €"}},null,"Locais",null,null,{"$f":"Impostos[[#This Row],[Custo Estimado]]-Impostos[[#This Row],[Custo Real]]","v":{"v":0,"d":"0 €"}}]
[null,"Saúde",null,null,{"$f":"Seguros[[#This Row],[Custo Estimado]]-Seguros[[#This Row],[Custo Real]]","v":{"v":0,"d":"0 €"}},null,"Outros",null,null,{"$f":"Impostos[[#This Row],[Custo Estimado]]-Impostos[[#This Row],[Custo Real]]","v":{"v":0,"d":"0 €"}}]
[null,"Vida",null,null,{"$f":"Seguros[[#This Row],[Custo Estimado]]-Seguros[[#This Row],[Custo Real]]","v":{"v":0,"d":"0 €"}},null,"Total",{"$f":"SUBTOTAL(109,Impostos[Custo Estimado])","v":{"v":0,"d":"0 €"}},{"$f":"SUBTOTAL(109,Impostos[Custo Real])","v":{"v":0,"d":"0 €"}},{"$f":"SUBTOTAL(109,Impostos[Diferença])","v":{"v":0,"d":"0 €"}}]
[null,"Outros",null,null,{"$f":"Seguros[[#This Row],[Custo Estimado]]-Seguros[[#This Row],[Custo Real]]","v":{"v":0,"d":"0 €"}}]
[null,"Total",{"$f":"SUBTOTAL(109,Seguros[Custo Estimado])","v":{"v":0,"d":"0 €"}},{"$f":"SUBTOTAL(109,Seguros[Custo Real])","v":{"v":0,"d":"0 €"}},{"$f":"SUBTOTAL(109,Seguros[Diferença])","v":{"v":0,"d":"0 €"}},null,"POUPANÇAS OU INVESTIMENTOS","Custo Estimado","Custo Real","Diferença"]
[{"$nulls":6},"Conta poupança para reforma",null,null,{"$f":"PoupançasOuInvestimentos[[#This Row],[Custo Estimado]]-PoupançasOuInvestimentos[[#This Row],[Custo Real]]","v":{"v":0,"d":"0 €"}}]
[null,"ALIMENTAÇÃO","Custo Estimado","Custo Real","Diferença",null,"Conta de investimento",null,null,{"$f":"PoupançasOuInvestimentos[[#This Row],[Custo Estimado]]-PoupançasOuInvestimentos[[#This Row],[Custo Real]]","v":{"v":0,"d":"0 €"}}]
[null,"Compras",null,null,{"$f":"Alimentação[[#This Row],[Custo Estimado]]-Alimentação[[#This Row],[Custo Real]]","v":{"v":0,"d":"0 €"}},null,"Outros",null,null,{"$f":"PoupançasOuInvestimentos[[#This Row],[Custo Estimado]]-PoupançasOuInvestimentos[[#This Row],[Custo Real]]","v":{"v":0,"d":"0 €"}}]
[null,"Restauração",null,null,{"$f":"Alimentação[[#This Row],[Custo Estimado]]-Alimentação[[#This Row],[Custo Real]]","v":{"v":0,"d":"0 €"}},null,"Total",{"$f":"SUBTOTAL(109,PoupançasOuInvestimentos[Custo Estimado])","v":{"v":0,"d":"0 €"}},{"$f":"SUBTOTAL(109,PoupançasOuInvestimentos[Custo Real])","v":{"v":0,"d":"0 €"}},{"$f":"SUBTOTAL(109,PoupançasOuInvestimentos[Diferença])","v":{"v":0,"d":"0 €"}}]
[null,"Outros",null,null,{"$f":"Alimentação[[#This Row],[Custo Estimado]]-Alimentação[[#This Row],[Custo Real]]","v":{"v":0,"d":"0 €"}}]
[null,"Total",{"$f":"SUBTOTAL(109,Alimentação[Custo Estimado])","v":{"v":0,"d":"0 €"}},{"$f":"SUBTOTAL(109,Alimentação[Custo Real])","v":{"v":0,"d":"0 €"}},{"$f":"SUBTOTAL(109,Alimentação[Diferença])","v":{"v":0,"d":"0 €"}},null,"PRESENTES E DONATIVOS","Custo Estimado","Custo Real","Diferença"]
[{"$nulls":6},"Caridade 1",null,null,{"$f":"PresentesEDonativos[[#This Row],[Custo Estimado]]-PresentesEDonativos[[#This Row],[Custo Real]]","v":{"v":0,"d":"0 €"}}]
[null,"ANIMAIS DE ESTIMAÇÃO","Custo Estimado","Custo Real","Diferença",null,"Caridade 2",null,null,{"$f":"PresentesEDonativos[[#This Row],[Custo Estimado]]-PresentesEDonativos[[#This Row],[Custo Real]]","v":{"v":0,"d":"0 €"}}]
[null,"Alimentação",null,null,{"$f":"AnimaisDeEstimação[[#This Row],[Custo Estimado]]-AnimaisDeEstimação[[#This Row],[Custo Real]]","v":{"v":0,"d":"0 €"}},null,"Caridade 3",null,null,{"$f":"PresentesEDonativos[[#This Row],[Custo Estimado]]-PresentesEDonativos[[#This Row],[Custo Real]]","v":{"v":0,"d":"0 €"}}]
[null,"Médico",null,null,{"$f":"AnimaisDeEstimação[[#This Row],[Custo Estimado]]-AnimaisDeEstimação[[#This Row],[Custo Real]]","v":{"v":0,"d":"0 €"}},null,"Total",{"$f":"SUBTOTAL(109,PresentesEDonativos[Custo Estimado])","v":{"v":0,"d":"0 €"}},{"$f":"SUBTOTAL(109,PresentesEDonativos[Custo Real])","v":{"v":0,"d":"0 €"}},{"$f":"SUBTOTAL(109,PresentesEDonativos[Diferença])","v":{"v":0,"d":"0 €"}}]
[null,"Cuidados",null,null,{"$f":"AnimaisDeEstimação[[#This Row],[Custo Estimado]]-AnimaisDeEstimação[[#This Row],[Custo Real]]","v":{"v":0,"d":"0 €"}}]
[null,"Brinquedos",null,null,{"$f":"AnimaisDeEstimação[[#This Row],[Custo Estimado]]-AnimaisDeEstimação[[#This Row],[Custo Real]]","v":{"v":0,"d":"0 €"}},null,"ASSUNTOS JURÍDICOS","Custo Estimado","Custo Real","Diferença"]
[null,"Outros",null,null,{"$f":"AnimaisDeEstimação[[#This Row],[Custo Estimado]]-AnimaisDeEstimação[[#This Row],[Custo Real]]","v":{"v":0,"d":"0 €"}},null,"Advogado",null,null,{"$f":"AssuntosJurídicos[[#This Row],[Custo Estimado]]-AssuntosJurídicos[[#This Row],[Custo Real]]","v":{"v":0,"d":"0 €"}}]
[null,"Total",{"$f":"SUBTOTAL(109,AnimaisDeEstimação[Custo Estimado])","v":{"v":0,"d":"0 €"}},{"$f":"SUBTOTAL(109,AnimaisDeEstimação[Custo Real])","v":{"v":0,"d":"0 €"}},{"$f":"SUBTOTAL(109,AnimaisDeEstimação[Diferença])","v":{"v":0,"d":"0 €"}},null,"Pensão de alimentos",null,null,{"$f":"AssuntosJurídicos[[#This Row],[Custo Estimado]]-AssuntosJurídicos[[#This Row],[Custo Real]]","v":{"v":0,"d":"0 €"}}]
[{"$nulls":6},"Pagamentos de direitos de retenção ou julgamento",null,null,{"$f":"AssuntosJurídicos[[#This Row],[Custo Estimado]]-AssuntosJurídicos[[#This Row],[Custo Real]]","v":{"v":0,"d":"0 €"}}]
[null,"CUIDADOS PESSOAIS","Custo Estimado","Custo Real","Diferença",null,"Outros",null,null,{"$f":"AssuntosJurídicos[[#This Row],[Custo Estimado]]-AssuntosJurídicos[[#This Row],[Custo Real]]","v":{"v":0,"d":"0 €"}}]
[null,"Médico",null,null,{"$f":"CuidadosPessoais[[#This Row],[Custo Estimado]]-CuidadosPessoais[[#This Row],[Custo Real]]","v":{"v":0,"d":"0 €"}},null,"Total",{"$f":"SUBTOTAL(109,AssuntosJurídicos[Custo Estimado])","v":{"v":0,"d":"0 €"}},{"$f":"SUBTOTAL(109,AssuntosJurídicos[Custo Real])","v":{"v":0,"d":"0 €"}},{"$f":"SUBTOTAL(109,AssuntosJurídicos[Diferença])","v":{"v":0,"d":"0 €"}}]
[null,"Cabeleireiro/manicura",null,null,{"$f":"CuidadosPessoais[[#This Row],[Custo Estimado]]-CuidadosPessoais[[#This Row],[Custo Real]]","v":{"v":0,"d":"0 €"}}]
[null,"Vestuário",null,null,{"$f":"CuidadosPessoais[[#This Row],[Custo Estimado]]-CuidadosPessoais[[#This Row],[Custo Real]]","v":{"v":0,"d":"0 €"}}]
[null,"Limpeza a seco",null,null,{"$f":"CuidadosPessoais[[#This Row],[Custo Estimado]]-CuidadosPessoais[[#This Row],[Custo Real]]","v":{"v":0,"d":"0 €"}}]
[null,"Ginásio",null,null,{"$f":"CuidadosPessoais[[#This Row],[Custo Estimado]]-CuidadosPessoais[[#This Row],[Custo Real]]","v":{"v":0,"d":"0 €"}}]
[null,"Contribuições ou taxas da organização",null,null,{"$f":"CuidadosPessoais[[#This Row],[Custo Estimado]]-CuidadosPessoais[[#This Row],[Custo Real]]","v":{"v":0,"d":"0 €"}}]
[null,"Outros",null,null,{"$f":"CuidadosPessoais[[#This Row],[Custo Estimado]]-CuidadosPessoais[[#This Row],[Custo Real]]","v":{"v":0,"d":"0 €"}}]
[null,"Total",{"$f":"SUBTOTAL(109,CuidadosPessoais[Custo Estimado])","v":{"v":0,"d":"0 €"}},{"$f":"SUBTOTAL(109,CuidadosPessoais[Custo Real])","v":{"v":0,"d":"0 €"}},{"$f":"SUBTOTAL(109,CuidadosPessoais[Diferença])","v":{"v":0,"d":"0 €"}}]